[Event "Open Nuevo Centro. Jornada 2"]
[Site "Chess.com"]
[Date "2020.06.26"]
[Round "6"]
[White "Sanchis Bon, Sergi"]
[Black "Morata Briones, Carlos"]
[Result "0-1"]
[WhiteElo "923"]
[BlackElo "882"]
[TimeControl "180+2"]
[EndTime "11:36:19 PDT"]
[Termination "Victoria de CarlosMorata por jaque mate"]

1. e4 {[%clk 0:03:01.9]} 1... e5 {[%clk 0:03:00.7]} 2. Qf3 {[%clk 0:03:00.5]}
2... Qf6 {[%clk 0:02:57.6]} 3. Nc3 {[%clk 0:02:55.7]} 3... Nc6 {[%clk
0:02:55.8]} 4. Bd3 {[%clk 0:02:38.1]} 4... Bc5 {[%clk 0:02:50.1]} 5. Bc4 {[%clk
0:02:36.9]} 5... d6 {[%clk 0:02:46.9]} 6. d3 {[%clk 0:02:36.6]} 6... Be6 {[%clk
0:02:44]} 7. Qxf6 {[%clk 0:02:35.2]} 7... Nxf6 {[%clk 0:02:43.3]} 8. Bxe6 {[%clk
0:02:35]} 8... fxe6 {[%clk 0:02:43.8]} 9. Nf3 {[%clk 0:02:33.7]} 9... Ng4 {[%clk
0:02:43.9]} 10. O-O {[%clk 0:02:32.9]} 10... Bxf2+ {[%clk 0:02:43.6]} 11. Rxf2
{[%clk 0:02:31.8]} 11... Nxf2 {[%clk 0:02:45.5]} 12. Kxf2 {[%clk 0:02:32.4]}
12... O-O {[%clk 0:02:45.7]} 13. Kg1 {[%clk 0:02:30.3]} 13... Rf7 {[%clk
0:02:44.7]} 14. Nh4 {[%clk 0:02:30.2]} 14... Raf8 {[%clk 0:02:43.6]} 15. Be3
{[%clk 0:02:29]} 15... h6 {[%clk 0:02:42]} 16. Nb5 {[%clk 0:02:25.2]} 16... a6
{[%clk 0:02:38.7]} 17. Nxc7 {[%clk 0:02:24.2]} 17... Rxc7 {[%clk 0:02:39]} 18.
Ng6 {[%clk 0:02:21]} 18... Rf6 {[%clk 0:02:34.3]} 19. Nh4 {[%clk 0:02:15.9]}
19... Rcf7 {[%clk 0:02:27.4]} 20. c4 {[%clk 0:02:04.7]} 20... Nd4 {[%clk
0:02:20]} 21. Bxd4 {[%clk 0:02:04.1]} 21... exd4 {[%clk 0:02:21]} 22. Nf3 {[%clk
0:02:00.2]} 22... e5 {[%clk 0:02:20.7]} 23. c5 {[%clk 0:01:55.1]} 23... dxc5
{[%clk 0:02:21]} 24. Nxe5 {[%clk 0:01:54.7]} 24... Re7 {[%clk 0:02:19.6]} 25.
Ng4 {[%clk 0:01:54.2]} 25... Rf4 {[%clk 0:02:18.2]} 26. h3 {[%clk 0:01:45.7]}
26... h5 {[%clk 0:02:17.8]} 27. Nf2 {[%clk 0:01:44]} 27... Ref7 {[%clk 0:02:18]}
28. Nh1 {[%clk 0:01:43.5]} 28... h4 {[%clk 0:02:15.6]} 29. g3 {[%clk 0:01:42.8]}
29... hxg3 {[%clk 0:02:12.5]} 30. Nxg3 {[%clk 0:01:41.9]} 30... Rf3 {[%clk
0:02:13.3]} 31. Nh5 {[%clk 0:01:40.1]} 31... Rxh3 {[%clk 0:02:13.4]} 32. Nxg7
{[%clk 0:01:24.2]} 32... Rxg7+ {[%clk 0:02:07.7]} 33. Kf2 {[%clk 0:01:23.3]}
33... Rf7+ {[%clk 0:02:07.1]} 34. Ke2 {[%clk 0:01:23]} 34... Rh2+ {[%clk
0:02:06.6]} 35. Ke1 {[%clk 0:01:18.9]} 35... Rg7 {[%clk 0:02:07.1]} 36. Kf1
{[%clk 0:01:15.2]} 36... Rf7+ {[%clk 0:02:02.1]} 37. Kg1 {[%clk 0:01:14.4]}
37... Rc2 {[%clk 0:02:02]} 38. Rd1 {[%clk 0:01:00.6]} 38... Rg7+ {[%clk
0:01:59.4]} 39. Kh1 {[%clk 0:00:59.2]} 39... Rh7+ {[%clk 0:01:59.9]} 40. Kg1
{[%clk 0:00:59.3]} 40... Rg7+ {[%clk 0:02:00.6]} 41. Kh1 {[%clk 0:00:57.2]}
41... Rh7+ {[%clk 0:02:01]} 42. Kg1 {[%clk 0:00:57.6]} 42... Rh6 {[%clk
0:02:01.1]} 43. Rf1 {[%clk 0:00:51.4]} 43... Rg6+ {[%clk 0:01:56.4]} 44. Kh1
{[%clk 0:00:51.1]} 44... Re2 {[%clk 0:01:53.1]} 45. Rf5 {[%clk 0:00:33.3]} 45...
Re1+ {[%clk 0:01:49.6]} 46. Kh2 {[%clk 0:00:33.3]} 46... Rh6+ {[%clk 0:01:44.6]}
47. Kg3 {[%clk 0:00:30.6]} 47... Re3+ {[%clk 0:01:44.1]} 48. Kg4 {[%clk
0:00:29.3]} 48... Rg6+ {[%clk 0:01:38.5]} 49. Kh5 {[%clk 0:00:27.1]} 49... Kh7
{[%clk 0:01:38.9]} 50. Rf7+ {[%clk 0:00:25.1]} 50... Kg8 {[%clk 0:01:38.1]} 51.
Rxb7 {[%clk 0:00:24.5]} 51... Rg1 {[%clk 0:01:32.4]} 52. Rb8+ {[%clk 0:00:20.9]}
52... Kf7 {[%clk 0:01:32.3]} 53. Rb7+ {[%clk 0:00:20.3]} 53... Ke6 {[%clk
0:01:32.8]} 54. Rb6+ {[%clk 0:00:20.4]} 54... Ke5 {[%clk 0:01:33]} 55. Rxa6
{[%clk 0:00:20.5]} 55... Rh3# {[%clk 0:01:32]} 0

[Event "Open Nuevo Centro. Jornada 2"]
[Site "Chess.com"]
[Date "2020.06.26"]
[Round "6"]
[White "Ainsa Jimenez, Lucas"]
[Black "Denis Cazacu, Ioan"]
[Result "0-1"]
[WhiteElo "923"]
[BlackElo "1397"]
[TimeControl "180+2"]
[EndTime "11:36:23 PDT"]
[Termination "Victoria de TFdenis25 por jaque mate"]

1. e4 {[%clk 0:03:01.9]} 1... c5 {[%clk 0:03:00.3]} 2. Nf3 {[%clk 0:03:02.4]}
2... Nc6 {[%clk 0:03:01.4]} 3. Bc4 {[%clk 0:03:03.2]} 3... g6 {[%clk 0:02:58.8]}
4. Ng5 {[%clk 0:03:02.8]} 4... e6 {[%clk 0:03:00.1]} 5. Nf3 {[%clk 0:03:01.5]}
5... Bg7 {[%clk 0:03:00.6]} 6. Nc3 {[%clk 0:03:01.4]} 6... Nf6 {[%clk
0:03:01.1]} 7. O-O {[%clk 0:03:00.6]} 7... a6 {[%clk 0:02:57.2]} 8. Re1 {[%clk
0:03:00.5]} 8... b5 {[%clk 0:02:57.1]} 9. Bf1 {[%clk 0:02:55]} 9... O-O {[%clk
0:02:53.4]} 10. g3 {[%clk 0:02:52.6]} 10... d5 {[%clk 0:02:52.6]} 11. exd5
{[%clk 0:02:50.7]} 11... Nxd5 {[%clk 0:02:54.5]} 12. Nxd5 {[%clk 0:02:48.9]}
12... Qxd5 {[%clk 0:02:56.4]} 13. Bg2 {[%clk 0:02:46.5]} 13... Qd6 {[%clk
0:02:52.1]} 14. d3 {[%clk 0:02:40.5]} 14... Rb8 {[%clk 0:02:50.2]} 15. Bf4
{[%clk 0:02:36.8]} 15... e5 {[%clk 0:02:49.2]} 16. Bc1 {[%clk 0:02:26.9]} 16...
Nd4 {[%clk 0:02:48.2]} 17. Nxd4 {[%clk 0:02:26.6]} 17... cxd4 {[%clk 0:02:48.6]}
18. Bd2 {[%clk 0:02:19.5]} 18... Bb7 {[%clk 0:02:46.8]} 19. Bxb7 {[%clk
0:02:18]} 19... Rxb7 {[%clk 0:02:48.7]} 20. a3 {[%clk 0:02:17.9]} 20... Re7
{[%clk 0:02:44.9]} 21. Bb4 {[%clk 0:02:17.5]} 21... Qd7 {[%clk 0:02:43.1]} 22.
Bxe7 {[%clk 0:02:16.9]} 22... Qxe7 {[%clk 0:02:45]} 23. c3 {[%clk 0:02:10.5]}
23... dxc3 {[%clk 0:02:42.8]} 24. bxc3 {[%clk 0:02:10.3]} 24... Qc7 {[%clk
0:02:42.2]} 25. Qc2 {[%clk 0:02:08.1]} 25... Rc8 {[%clk 0:02:40.1]} 26. Rac1
{[%clk 0:02:05.4]} 26... Qd6 {[%clk 0:02:38.8]} 27. Qd2 {[%clk 0:01:56.5]} 27...
Qxa3 {[%clk 0:02:37.7]} 28. Ra1 {[%clk 0:01:51.5]} 28... Qd6 {[%clk 0:02:38.2]}
29. Ra2 {[%clk 0:01:47.4]} 29... h5 {[%clk 0:02:28.9]} 30. Rea1 {[%clk
0:01:44.2]} 30... Rc6 {[%clk 0:02:29.4]} 31. c4 {[%clk 0:01:36.8]} 31... e4
{[%clk 0:02:29.5]} 32. cxb5 {[%clk 0:01:35]} 32... axb5 {[%clk 0:02:15.5]} 33.
dxe4 {[%clk 0:01:33.1]} 33... Bxa1 {[%clk 0:02:14.2]} 34. Qxd6 {[%clk
0:01:30.4]} 34... Rxd6 {[%clk 0:02:14.8]} 35. Rxa1 {[%clk 0:01:30.7]} 35... Rd4
{[%clk 0:02:13.9]} 36. Re1 {[%clk 0:01:29.5]} 36... Rb4 {[%clk 0:02:12.8]} 37.
Kg2 {[%clk 0:01:26.5]} 37... Rb3 {[%clk 0:02:12.6]} 38. Kh3 {[%clk 0:01:22.9]}
38... Kg7 {[%clk 0:02:13.4]} 39. e5 {[%clk 0:01:22.1]} 39... Rb4 {[%clk
0:02:04.2]} 40. f4 {[%clk 0:01:18.3]} 40... Kf8 {[%clk 0:02:01.5]} 41. Kh4
{[%clk 0:01:18.1]} 41... Ke7 {[%clk 0:02:01.9]} 42. Kg5 {[%clk 0:01:18.4]} 42...
Ke6 {[%clk 0:02:03]} 43. g4 {[%clk 0:01:15.4]} 43... hxg4 {[%clk 0:02:00.6]} 44.
Kxg4 {[%clk 0:01:15]} 44... Rb2 {[%clk 0:02:01.8]} 45. h3 {[%clk 0:01:09.2]}
45... b4 {[%clk 0:02:00.9]} 46. Re4 {[%clk 0:01:05.7]} 46... b3 {[%clk 0:02:00]}
47. Rb4 {[%clk 0:01:05.1]} 47... Rb1 {[%clk 0:01:55]} 48. Rb6+ {[%clk
0:01:00.3]} 48... Ke7 {[%clk 0:01:51.2]} 49. Kg5 {[%clk 0:00:58.8]} 49... b2
{[%clk 0:01:41.5]} 50. h4 {[%clk 0:00:52.8]} 50... Rg1+ {[%clk 0:01:40.6]} 51.
Kh6 {[%clk 0:00:52.5]} 51... b1=Q {[%clk 0:01:41.3]} 52. Rxb1 {[%clk 0:00:51.5]}
52... Rxb1 {[%clk 0:01:43.2]} 53. h5 {[%clk 0:00:51.5]} 53... gxh5 {[%clk
0:01:43.5]} 54. Kxh5 {[%clk 0:00:51.9]} 54... Rf1 {[%clk 0:01:44.4]} 55. Kg5
{[%clk 0:00:52.2]} 55... Ke6 {[%clk 0:01:45.3]} 56. Kg4 {[%clk 0:00:50.5]} 56...
f6 {[%clk 0:01:46.3]} 57. exf6 {[%clk 0:00:50.2]} 57... Kxf6 {[%clk 0:01:48.2]}
58. Kg3 {[%clk 0:00:50]} 58... Kf5 {[%clk 0:01:48]} 59. Kg2 {[%clk 0:00:50.4]}
59... Rxf4 {[%clk 0:01:49.9]} 60. Kg3 {[%clk 0:00:50.9]} 60... Ke4 {[%clk
0:01:50.1]} 61. Kg2 {[%clk 0:00:50.9]} 61... Ke3 {[%clk 0:01:51]} 62. Kg3 {[%clk
0:00:51.5]} 62... Rf8 {[%clk 0:01:51.9]} 63. Kg4 {[%clk 0:00:52.3]} 63... Rf2
{[%clk 0:01:52.1]} 64. Kg3 {[%clk 0:00:51.8]} 64... Rf8 {[%clk 0:01:52.9]} 65.
Kg4 {[%clk 0:00:52.2]} 65... Rf1 {[%clk 0:01:54.4]} 66. Kg5 {[%clk 0:00:52.4]}
66... Ke4 {[%clk 0:01:54.4]} 67. Kg6 {[%clk 0:00:54.2]} 67... Ke5 {[%clk
0:01:54.7]} 68. Kg7 {[%clk 0:00:55.3]} 68... Ke6 {[%clk 0:01:56.3]} 69. Kg8
{[%clk 0:00:56.5]} 69... Ke7 {[%clk 0:01:57.9]} 70. Kg7 {[%clk 0:00:58.4]} 70...
Rg1+ {[%clk 0:01:59.5]} 71. Kh6 {[%clk 0:00:59.9]} 71... Kf6 {[%clk 0:02:01.1]}
72. Kh5 {[%clk 0:01:00.6]} 72... Rg8 {[%clk 0:02:02.1]} 73. Kh6 {[%clk
0:01:01.5]} 73... Rh8# {[%clk 0:02:03.2]} 0

[Event "Open Nuevo Centro. Jornada 2"]
[Site "Chess.com"]
[Date "2020.06.26"]
[Round "6"]
[White "Rodriguez, Mathias"]
[Black "Zamora Soler, Raul"]
[Result "0-1"]
[WhiteElo "1959"]
[BlackElo "1783"]
[TimeControl "180+2"]
[EndTime "11:36:58 PDT"]
[Termination "Victoria de rzamora80 por jaque mate"]

1. e4 {[%clk 0:03:01.7]} 1... c5 {[%clk 0:03:00.6]} 2. Nf3 {[%clk 0:03:03]} 2...
Nc6 {[%clk 0:03:01.4]} 3. Bb5 {[%clk 0:03:03.6]} 3... e6 {[%clk 0:02:59.5]} 4.
Nc3 {[%clk 0:03:03.6]} 4... a6 {[%clk 0:02:59.6]} 5. Bxc6 {[%clk 0:03:04.3]}
5... bxc6 {[%clk 0:03:00.8]} 6. O-O {[%clk 0:03:03.3]} 6... Be7 {[%clk 0:03:01]}
7. d3 {[%clk 0:03:01.6]} 7... d5 {[%clk 0:03:01]} 8. h3 {[%clk 0:03:02.8]} 8...
Bf6 {[%clk 0:02:55.7]} 9. e5 {[%clk 0:02:59.2]} 9... Be7 {[%clk 0:02:56.1]} 10.
Nh2 {[%clk 0:03:00.6]} 10... a5 {[%clk 0:02:46.4]} 11. Qg4 {[%clk 0:02:57.7]}
11... g6 {[%clk 0:02:46.7]} 12. a4 {[%clk 0:02:52.4]} 12... Ba6 {[%clk 0:02:47]}
13. f4 {[%clk 0:02:49.3]} 13... c4 {[%clk 0:02:47.8]} 14. Rd1 {[%clk 0:02:20.7]}
14... cxd3 {[%clk 0:02:48.2]} 15. cxd3 {[%clk 0:02:22.3]} 15... Qb6+ {[%clk
0:02:41.2]} 16. Kh1 {[%clk 0:02:21.8]} 16... Qf2 {[%clk 0:02:33.7]} 17. Nf3
{[%clk 0:02:10.9]} 17... h5 {[%clk 0:02:31.7]} 18. Be3 {[%clk 0:01:52.3]} 18...
hxg4 {[%clk 0:02:22.2]} 19. Bxf2 {[%clk 0:01:50.6]} 19... gxf3 {[%clk 0:02:22]}
20. gxf3 {[%clk 0:01:50.2]} 20... Rxh3+ {[%clk 0:02:22.3]} 21. Kg2 {[%clk
0:01:52.1]} 21... Rh8 {[%clk 0:02:19.4]} 22. Ne2 {[%clk 0:01:52.3]} 22... Kd7
{[%clk 0:02:09.8]} 23. Rac1 {[%clk 0:01:50.7]} 23... Nh6 {[%clk 0:01:51.8]} 24.
Ng3 {[%clk 0:01:51.4]} 24... Nf5 {[%clk 0:01:31.6]} 25. Nxf5 {[%clk 0:01:52]}
25... gxf5 {[%clk 0:01:32.4]} 26. Bc5 {[%clk 0:01:53.2]} 26... Rag8+ {[%clk
0:01:31.2]} 27. Kf2 {[%clk 0:01:50.2]} 27... Rh2+ {[%clk 0:01:27.8]} 28. Ke3
{[%clk 0:01:50.8]} 28... Bd8 {[%clk 0:01:16]} 29. Rg1 {[%clk 0:01:32.9]} 29...
Rhg2 {[%clk 0:00:21.7]} 30. Rxg2 {[%clk 0:01:13.2]} 30... Rxg2 {[%clk
0:00:22.1]} 31. Bd4 {[%clk 0:01:15.1]} 31... Be7 {[%clk 0:00:21.9]} 32. Bb6
{[%clk 0:01:10.1]} 32... Rxb2 {[%clk 0:00:21.1]} 33. Bxa5 {[%clk 0:01:09.1]}
33... c5 {[%clk 0:00:22.1]} 34. Bd2 {[%clk 0:01:01.4]} 34... d4+ {[%clk
0:00:22.9]} 35. Ke2 {[%clk 0:01:02.5]} 35... Rb3 {[%clk 0:00:22.2]} 36. Rh1
{[%clk 0:01:02]} 36... Bxd3+ {[%clk 0:00:22.8]} 37. Kf2 {[%clk 0:01:01]} 37...
c4 {[%clk 0:00:23]} 38. Rh7 {[%clk 0:01:00.1]} 38... c3 {[%clk 0:00:23.7]} 39.
Bc1 {[%clk 0:00:59.7]} 39... Ke8 {[%clk 0:00:22]} 40. Rh8+ {[%clk 0:01:00.3]}
40... Bf8 {[%clk 0:00:22.1]} 41. Ke1 {[%clk 0:00:56.4]} 41... Rb1 {[%clk
0:00:21.1]} 42. Kd1 {[%clk 0:00:56.2]} 42... Be2+ {[%clk 0:00:21.4]} 43. Kc2
{[%clk 0:00:55.8]} 43... Rxc1+ {[%clk 0:00:22.5]} 44. Kxc1 {[%clk 0:00:56.7]}
44... d3 {[%clk 0:00:24]} 45. Rh1 {[%clk 0:00:55]} 45... d2+ {[%clk 0:00:25.1]}
46. Kc2 {[%clk 0:00:55.8]} 46... d1=Q+ {[%clk 0:00:26.3]} 47. Rxd1 {[%clk
0:00:57.2]} 47... Bxd1+ {[%clk 0:00:28.2]} 48. Kxd1 {[%clk 0:00:59.1]} 48... Bb4
{[%clk 0:00:29.8]} 49. Kc2 {[%clk 0:01:00.1]} 49... Ba5 {[%clk 0:00:31.7]} 50.
Kd3 {[%clk 0:01:00.3]} 50... Kd7 {[%clk 0:00:33.6]} 51. Kc2 {[%clk 0:00:58.9]}
51... Kc6 {[%clk 0:00:35.5]} 52. Kd3 {[%clk 0:01:00.8]} 52... Kc5 {[%clk
0:00:37.4]} 53. Kc2 {[%clk 0:01:02.7]} 53... Kb4 {[%clk 0:00:39.3]} 54. Kd3
{[%clk 0:01:03.3]} 54... Kxa4 {[%clk 0:00:41.2]} 55. Kc2 {[%clk 0:01:05.2]}
55... Kb4 {[%clk 0:00:43.1]} 56. Kd3 {[%clk 0:01:07.1]} 56... Kb3 {[%clk
0:00:45]} 57. Ke2 {[%clk 0:01:08.4]} 57... Kc4 {[%clk 0:00:46.9]} 58. Kd1 {[%clk
0:01:09.1]} 58... Kd4 {[%clk 0:00:48.8]} 59. Ke2 {[%clk 0:01:10.3]} 59... c2
{[%clk 0:00:48]} 60. Kf2 {[%clk 0:01:11.7]} 60... c1=Q {[%clk 0:00:49.1]} 61.
Kg3 {[%clk 0:01:13.6]} 61... Qg1+ {[%clk 0:00:49.2]} 62. Kh3 {[%clk 0:01:15.1]}
62... Ke3 {[%clk 0:00:50.3]} 63. Kh4 {[%clk 0:01:16.1]} 63... Kxf4 {[%clk
0:00:52.2]} 64. Kh5 {[%clk 0:01:17.6]} 64... Qg5# {[%clk 0:00:53]} 0

[Event "Open Nuevo Centro. Jornada 2"]
[Site "Chess.com"]
[Date "2020.06.26"]
[Round "6"]
[White "Rabbani Perez, Oumaima "]
[Black "Alvarez Usina, Joan"]
[Result "0-1"]
[WhiteElo "652"]
[BlackElo "782"]
[TimeControl "180+2"]
[EndTime "11:37:03 PDT"]
[Termination "Victoria de Joan_alvarez por jaque mate"]

1. e3 {[%clk 0:03:01.9]} 1... e5 {[%clk 0:03:01.9]} 2. Bc4 {[%clk 0:03:00.5]}
2... Bc5 {[%clk 0:02:56.7]} 3. Nf3 {[%clk 0:02:59.8]} 3... Nc6 {[%clk
0:02:47.6]} 4. Ng5 {[%clk 0:02:59.4]} 4... Qxg5 {[%clk 0:02:44.3]} 5. Qf3 {[%clk
0:02:54.5]} 5... d6 {[%clk 0:02:37.2]} 6. Qxf7+ {[%clk 0:02:53.1]} 6... Kd8
{[%clk 0:02:35]} 7. Qf8+ {[%clk 0:02:51.9]} 7... Kd7 {[%clk 0:02:35]} 8. Qf7+
{[%clk 0:02:46.7]} 8... Kd8 {[%clk 0:02:25.4]} 9. Nc3 {[%clk 0:02:41.1]} 9...
Nh6 {[%clk 0:02:12.1]} 10. Qe6 {[%clk 0:02:34.6]} 10... Bxe6 {[%clk 0:02:10.4]}
11. Bxe6 {[%clk 0:02:30.6]} 11... Ng4 {[%clk 0:02:02.8]} 12. O-O {[%clk
0:02:27.5]} 12... Qh5 {[%clk 0:01:57.8]} 13. h3 {[%clk 0:02:25.1]} 13... Nf6
{[%clk 0:01:54.6]} 14. Bg4 {[%clk 0:02:23.4]} 14... Nxg4 {[%clk 0:01:53.5]} 15.
hxg4 {[%clk 0:02:23.2]} 15... Qxg4 {[%clk 0:01:54.7]} 16. f3 {[%clk 0:02:21.6]}
16... Qc4 {[%clk 0:01:51.1]} 17. Rf2 {[%clk 0:02:13.8]} 17... Nb4 {[%clk
0:01:45.1]} 18. d3 {[%clk 0:02:11.8]} 18... Qb5 {[%clk 0:01:43.7]} 19. Nxb5
{[%clk 0:02:08.3]} 19... Bxe3 {[%clk 0:01:42.8]} 20. Bxe3 {[%clk 0:02:04.7]}
20... Nxc2 {[%clk 0:01:41.5]} 21. Rc1 {[%clk 0:02:04]} 21... Nxe3 {[%clk
0:01:26.8]} 22. Nxc7 {[%clk 0:02:02.2]} 22... Rc8 {[%clk 0:01:23.3]} 23. Rd2
{[%clk 0:01:52.2]} 23... Rxc7 {[%clk 0:01:19.6]} 24. Rxc7 {[%clk 0:01:51.3]}
24... Kxc7 {[%clk 0:01:18.7]} 25. Re2 {[%clk 0:01:44.1]} 25... Nd5 {[%clk
0:01:16.3]} 26. g4 {[%clk 0:01:37.2]} 26... Rf8 {[%clk 0:01:08.3]} 27. Rc2+
{[%clk 0:01:35.9]} 27... Kd7 {[%clk 0:01:05.3]} 28. Kg2 {[%clk 0:01:25.1]} 28...
Ne3+ {[%clk 0:01:03.9]} 29. Kf2 {[%clk 0:01:24.3]} 29... Nxc2 {[%clk 0:01:05.8]}
30. b4 {[%clk 0:01:20.3]} 30... Nxb4 {[%clk 0:01:05]} 31. d4 {[%clk 0:01:17]}
31... exd4 {[%clk 0:01:04.2]} 32. g5 {[%clk 0:01:09.9]} 32... Re8 {[%clk
0:01:02.7]} 33. f4 {[%clk 0:01:02.8]} 33... Nxa2 {[%clk 0:00:58]} 34. f5 {[%clk
0:01:00.2]} 34... Rf8 {[%clk 0:00:52.5]} 35. f6 {[%clk 0:00:59.6]} 35... gxf6
{[%clk 0:00:50.8]} 36. gxf6 {[%clk 0:00:58.9]} 36... Rxf6+ {[%clk 0:00:49.4]}
37. Kg2 {[%clk 0:01:00]} 37... d3 {[%clk 0:00:47.7]} 38. Kh3 {[%clk 0:01:01.2]}
38... d2 {[%clk 0:00:47.5]} 39. Kg2 {[%clk 0:01:01.2]} 39... d1=Q {[%clk
0:00:46.3]} 40. Kg3 {[%clk 0:01:00.5]} 40... b5 {[%clk 0:00:45.2]} 41. Kh3
{[%clk 0:00:59.6]} 41... b4 {[%clk 0:00:44.6]} 42. Kh4 {[%clk 0:00:58.6]} 42...
b3 {[%clk 0:00:39.4]} 43. Kg5 {[%clk 0:00:59.3]} 43... b2 {[%clk 0:00:37.2]} 44.
Kxf6 {[%clk 0:00:59]} 44... b1=Q {[%clk 0:00:36.3]} 45. Kf7 {[%clk 0:00:57.6]}
45... Qg1 {[%clk 0:00:34.1]} 46. Kf6 {[%clk 0:00:56.1]} 46... d5 {[%clk
0:00:30.6]} 47. Ke5 {[%clk 0:00:56.1]} 47... d4 {[%clk 0:00:28.9]} 48. Kd5
{[%clk 0:00:52.4]} 48... d3 {[%clk 0:00:28.6]} 49. Ke4 {[%clk 0:00:51.7]} 49...
d2+ {[%clk 0:00:27.6]} 50. Kf3 {[%clk 0:00:50.4]} 50... d1=Q+ {[%clk 0:00:26.5]}
51. Kf4 {[%clk 0:00:47.6]} 51... Qgd4+ {[%clk 0:00:20.7]} 52. Kg3 {[%clk
0:00:45.3]} 52... Q1g1+ {[%clk 0:00:18.3]} 53. Kf3 {[%clk 0:00:42.6]} 53...
Qbd1# {[%clk 0:00:18.4]} 0

[Event "Open Nuevo Centro. Jornada 2"]
[Site "Chess.com"]
[Date "2020.06.26"]
[Round "6"]
[White "Hernández Tomás, Efrén"]
[Black "Deusa Ballesteros, Lucas "]
[Result "0-1"]
[WhiteElo "1037"]
[BlackElo "1460"]
[TimeControl "180+2"]
[EndTime "11:37:05 PDT"]
[Termination "Victoria de facundillo2009 por jaque mate"]

1. e4 {[%clk 0:03:01.9]} 1... e6 {[%clk 0:02:57.1]} 2. Nf3 {[%clk 0:03:03]} 2...
d5 {[%clk 0:02:57.5]} 3. exd5 {[%clk 0:03:03.2]} 3... exd5 {[%clk 0:02:58.1]} 4.
Qe2+ {[%clk 0:03:03.4]} 4... Qe7 {[%clk 0:02:56.6]} 5. Nc3 {[%clk 0:03:01.7]}
5... Nf6 {[%clk 0:02:54.3]} 6. Qxe7+ {[%clk 0:02:55.2]} 6... Bxe7 {[%clk
0:02:54.3]} 7. Nb5 {[%clk 0:02:52.4]} 7... Na6 {[%clk 0:02:53.1]} 8. Nc3 {[%clk
0:02:50.4]} 8... c6 {[%clk 0:02:51.2]} 9. Bxa6 {[%clk 0:02:49]} 9... bxa6 {[%clk
0:02:51.4]} 10. O-O {[%clk 0:02:48.7]} 10... O-O {[%clk 0:02:50.3]} 11. Re1
{[%clk 0:02:48]} 11... Re8 {[%clk 0:02:47.2]} 12. d3 {[%clk 0:02:49.1]} 12...
Bd7 {[%clk 0:02:47]} 13. Bg5 {[%clk 0:02:50.1]} 13... Rab8 {[%clk 0:02:44.4]}
14. Ne5 {[%clk 0:02:50.6]} 14... Bf5 {[%clk 0:02:03.5]} 15. Nxc6 {[%clk
0:02:48.1]} 15... Bc5 {[%clk 0:01:53.3]} 16. Rxe8+ {[%clk 0:02:45.5]} 16... Rxe8
{[%clk 0:01:53.3]} 17. Bxf6 {[%clk 0:02:43.6]} 17... gxf6 {[%clk 0:01:53.4]} 18.
Nxd5 {[%clk 0:02:42.6]} 18... Rc8 {[%clk 0:01:27.6]} 19. Nxf6+ {[%clk
0:02:40.2]} 19... Kg7 {[%clk 0:01:26.5]} 20. Nh5+ {[%clk 0:02:38.4]} 20... Kh6
{[%clk 0:01:25.3]} 21. d4 {[%clk 0:02:22.9]} 21... Rxc6 {[%clk 0:01:14]} 22.
dxc5 {[%clk 0:02:22.2]} 22... Kxh5 {[%clk 0:01:14.1]} 23. b4 {[%clk 0:02:18.9]}
23... a5 {[%clk 0:01:12.2]} 24. c3 {[%clk 0:02:15]} 24... Kg6 {[%clk 0:01:08.4]}
25. Rd1 {[%clk 0:02:12.3]} 25... axb4 {[%clk 0:01:00.6]} 26. cxb4 {[%clk
0:02:09.8]} 26... Kf6 {[%clk 0:01:00.6]} 27. Rd6+ {[%clk 0:02:07.4]} 27... Rxd6
{[%clk 0:01:00.7]} 28. cxd6 {[%clk 0:02:07.6]} 28... Ke6 {[%clk 0:01:01.9]} 29.
Kf1 {[%clk 0:02:06.1]} 29... Kxd6 {[%clk 0:01:02.7]} 30. Ke2 {[%clk 0:02:07.5]}
30... Kc6 {[%clk 0:01:02.8]} 31. Kd2 {[%clk 0:02:08.8]} 31... Kb5 {[%clk
0:01:03.6]} 32. Kc3 {[%clk 0:02:10.2]} 32... a5 {[%clk 0:01:04.2]} 33. bxa5
{[%clk 0:02:10.2]} 33... Kxa5 {[%clk 0:01:05.3]} 34. Kb3 {[%clk 0:02:08.7]}
34... Be6+ {[%clk 0:01:04.9]} 35. Kb2 {[%clk 0:02:05.9]} 35... Ka4 {[%clk
0:01:00.5]} 36. a3 {[%clk 0:02:05.5]} 36... h5 {[%clk 0:00:54.7]} 37. f3 {[%clk
0:02:05.3]} 37... h4 {[%clk 0:00:54.3]} 38. h3 {[%clk 0:02:04.4]} 38... Bd5
{[%clk 0:00:48.1]} 39. Kc3 {[%clk 0:01:57.5]} 39... Kxa3 {[%clk 0:00:47]} 40.
Kd4 {[%clk 0:01:58.9]} 40... Be6 {[%clk 0:00:46.1]} 41. Ke4 {[%clk 0:01:57.4]}
41... Kb3 {[%clk 0:00:45.8]} 42. Kf4 {[%clk 0:01:58.7]} 42... f6 {[%clk
0:00:45.3]} 43. g4 {[%clk 0:01:55.2]} 43... hxg3 {[%clk 0:00:43.2]} 44. Kxg3
{[%clk 0:01:55]} 44... Kc4 {[%clk 0:00:44]} 45. h4 {[%clk 0:01:54]} 45... Kd5
{[%clk 0:00:42.9]} 46. Kf4 {[%clk 0:01:54.6]} 46... Kd6 {[%clk 0:00:39.7]} 47.
Kg3 {[%clk 0:01:47.3]} 47... Ke7 {[%clk 0:00:39.2]} 48. f4 {[%clk 0:01:47.1]}
48... Kf7 {[%clk 0:00:39.4]} 49. h5 {[%clk 0:01:46.7]} 49... Kg7 {[%clk
0:00:40]} 50. Kh4 {[%clk 0:01:47.3]} 50... Kh6 {[%clk 0:00:40.7]} 51. Kg3 {[%clk
0:01:41.1]} 51... Kxh5 {[%clk 0:00:40.2]} 52. Kf3 {[%clk 0:01:41.7]} 52... Kh4
{[%clk 0:00:22.1]} 53. Ke4 {[%clk 0:01:41]} 53... Kg4 {[%clk 0:00:22.6]} 54. Ke3
{[%clk 0:01:40.4]} 54... f5 {[%clk 0:00:21.4]} 55. Kf2 {[%clk 0:01:40.6]} 55...
Kxf4 {[%clk 0:00:22.4]} 56. Kg2 {[%clk 0:01:41.2]} 56... Bd5+ {[%clk 0:00:23]}
57. Kf2 {[%clk 0:01:42.1]} 57... Kg4 {[%clk 0:00:24.3]} 58. Ke2 {[%clk
0:01:42.3]} 58... f4 {[%clk 0:00:25.1]} 59. Kf2 {[%clk 0:01:43.5]} 59... f3
{[%clk 0:00:25.9]} 60. Kf1 {[%clk 0:01:43.8]} 60... Kg3 {[%clk 0:00:26.1]} 61.
Ke1 {[%clk 0:01:43.5]} 61... Bc4 {[%clk 0:00:26.1]} 62. Kd2 {[%clk 0:01:41.2]}
62... f2 {[%clk 0:00:27]} 63. Kc3 {[%clk 0:01:41.3]} 63... f1=Q {[%clk
0:00:27.8]} 64. Kd4 {[%clk 0:01:42.6]} 64... Qd3+ {[%clk 0:00:28.6]} 65. Ke5
{[%clk 0:01:43.4]} 65... Qd5+ {[%clk 0:00:28.1]} 66. Kf6 {[%clk 0:01:43.9]}
66... Qe6+ {[%clk 0:00:28.9]} 67. Kg7 {[%clk 0:01:43.9]} 67... Qf7+ {[%clk
0:00:27.8]} 68. Kh6 {[%clk 0:01:42.2]} 68... Qf6+ {[%clk 0:00:24.5]} 69. Kh5
{[%clk 0:01:40.4]} 69... Bf7# {[%clk 0:00:21.8]} 0